fUSD/lending_fUSD_20260620
["ID","MTS","AMOUNT","RATE_DAILY","PERIOD"]
[425770390,1781884975000,-500.0,0.00017997,2]
[425770391,1781884983000,250.0,0.00014,2]
[425770392,1781884984000,300.0,0.00016,2]
[425770395,1781885081000,151.0,0.00015457,2]
[425770396,1781885144000,-151.0,0.0001764,2]
[425770397,1781885197000,-151.0,0.0001764,2]
[425770399,1781885251000,-500.0,0.00017639,2]
[425770400,1781885267000,-380.49804256,0.00017639,2]
[425770409,1781885318000,-499.99999999,0.00017639,2]
[425770412,1781885321000,-151.0,0.0001764,2]
[425770410,1781885321000,-151.0,0.0001764,2]
[425770413,1781885321000,-45.99999999,0.0001764,2]
[425770411,1781885321000,-152.0,0.0001764,2]
[425770418,1781885358000,-105.00000001,0.0001764,2]
[425770420,1781885412000,-150.0,0.0001764,2]
[425770438,1781885431000,-151.0,0.00017997,2]
[425770448,1781885431000,-153.0,0.00017999,2]
[425770447,1781885431000,-153.0,0.00017999,2]
[425770444,1781885431000,-152.0,0.00017998,2]
[425770443,1781885431000,-151.0,0.00017998,2]
[425770441,1781885431000,-152.0,0.00017998,2]
[425770442,1781885431000,-152.0,0.00017998,2]
[425770440,1781885431000,-150.0,0.00017998,2]
[425770434,1781885431000,-153.0,0.00017646,2]
[425770431,1781885431000,-151.0,0.0001764,2]
[425770436,1781885431000,-151.0,0.00017729,2]
[425770439,1781885431000,-151.0,0.00017998,2]
[425770437,1781885431000,-150.0,0.00017997,2]
[425770432,1781885431000,-151.0,0.0001764,2]
[425770430,1781885431000,-31.77149013,0.0001764,2]
[425770446,1781885431000,-151.0,0.00017999,2]
[425770429,1781885431000,-118.22850987,0.0001764,2]
[425770428,1781885431000,-150.0,0.0001764,2]
[425770427,1781885431000,-151.0,0.0001764,2]
[425770435,1781885431000,-152.0,0.00017662,2]
[425770445,1781885431000,-151.0,0.00017998,2]
[425770433,1781885431000,-153.0,0.00017641,2]
[425770450,1781885431000,-151.0,0.00017999,2]
[425770451,1781885431000,-151.0,0.00017999,2]
[425770481,1781885431000,-152.0,0.00018001,2]
[425770483,1781885431000,-1.2541487,0.00018005,2]
[425770474,1781885431000,-152.0,0.00018001,2]
[425770477,1781885431000,-150.1,0.00018001,2]
[425770468,1781885431000,-150.0,0.00018,2]
[425770479,1781885431000,-153.0,0.00018001,2]
[425770470,1781885431000,-152.0,0.00018,2]
[425770466,1781885431000,-152.0,0.00018,2]
[425770465,1781885431000,-151.0,0.00018,2]
[425770472,1781885431000,-152.0,0.00018001,2]
[425770463,1781885431000,-66.4164513,0.00018,2]
[425770457,1781885431000,-151.0,0.00018,2]
[425770459,1781885431000,-150.0,0.00018,2]
[425770461,1781885431000,-84.5835487,0.00018,2]
[425770456,1781885431000,-150.0,0.00018,2]
[425770452,1781885431000,-350.0,0.00018,2]
[425770455,1781885431000,-36.75961117,0.00018,2]
[425770453,1781885431000,-60.0,0.00018,2]
[425770454,1781885431000,-116.24038883,0.00018,2]
[425770449,1781885431000,-151.0,0.00017999,2]
[425770464,1781885431000,-153.0,0.00018,2]
[425770503,1781885437000,-150.7458513,0.00018005,2]
[425770502,1781885437000,-152.0,0.0001764,2]
[425770505,1781885437000,-151.0,0.00018086,2]
[425770508,1781885437000,-2500.0,0.00019404,2]
[425770507,1781885437000,-2500.0,0.00019404,2]
[425770506,1781885437000,-151.0,0.00018185,2]
[425770509,1781885437000,-1809.63384868,0.00019404,2]
[425770504,1781885437000,-151.0,0.00018022,2]
[425770606,1781885439000,-409.53920597,0.00019404,2]
[425770607,1781885439000,-280.82694535,0.00019404,2]
[425770611,1781885439000,-151.0,0.00019829,2]
[425770610,1781885439000,-1500.0,0.00019484,2]
[425770608,1781885439000,-2500.0,0.00019404,2]
[425770614,1781885439000,-399.68684002,0.0002,2]
[425770612,1781885439000,-152.0,0.00019829,2]
[425770613,1781885439000,-151.0,0.00019829,2]
[425770615,1781885439000,-0.31315998,0.0002,2]
[425770616,1781885439000,-261.0,0.0002,2]
[425770617,1781885439000,-82.62684002,0.0002,2]
[425770609,1781885439000,-2500.0,0.00019404,2]
[425770641,1781885440000,-166.0,0.00021918,2]
[425770639,1781885440000,-1734.62772924,0.00021676,2]
[425770640,1781885440000,-351.69970556,0.00021681,2]
[425770635,1781885440000,-167.0,0.00021,2]
[425770633,1781885440000,-156.0,0.00021,2]
[425770636,1781885440000,-520.0,0.00021,2]
[425770634,1781885440000,-174.0,0.00021,2]
[425770632,1781885440000,-1106.0,0.00021,2]
[425770630,1781885440000,-165.0,0.00021,2]
[425770631,1781885440000,-508.0,0.00021,2]
[425770626,1781885440000,-1555.5,0.00020032,2]
[425770628,1781885440000,-1065.36,0.00020951,2]
[425770624,1781885440000,-520.0,0.0002,2]
[425770625,1781885440000,-266.0,0.0002,2]
[425770622,1781885440000,-159.0,0.0002,2]
[425770623,1781885440000,-167.0,0.0002,2]
[425770621,1781885440000,-156.0,0.0002,2]
[425770619,1781885440000,-508.0,0.0002,2]
[425770620,1781885440000,-1106.0,0.0002,2]
[425770618,1781885440000,-82.37315998,0.0002,2]
[425770638,1781885440000,-1672.7364795,0.00021128,2]
[425770627,1781885440000,-1613.0535,0.0002058,2]
[425770643,1781885440000,-261.0,0.00022,2]
[425770629,1781885440000,-261.0,0.00021,2]
[425770645,1781885440000,-165.0,0.00022,2]
[425770668,1781885440000,-128.54997877,0.00023,2]
[425770666,1781885440000,-156.0,0.00023,2]
[425770664,1781885440000,-508.0,0.00023,2]
[425770660,1781885440000,-1865.36488656,0.00022772,2]
[425770662,1781885440000,-261.0,0.00023,2]
[425770665,1781885440000,-1106.0,0.00023,2]
[425770663,1781885440000,-165.0,0.00023,2]
[425770661,1781885440000,-200.0,0.00022804,2]
[425770659,1781885440000,-166.66,0.00022572,30]
[425770658,1781885440000,-150.0,0.0002254,2]
[425770667,1781885440000,-167.0,0.00023,2]
[425770642,1781885440000,-200.0,0.00021918,2]
[425770656,1781885440000,-2178.68,0.00022466,2]
[425770655,1781885440000,-503.72,0.00022466,2]
[425770646,1781885440000,-508.0,0.00022,2]
[425770648,1781885440000,-156.0,0.00022,2]
[425770650,1781885440000,-520.0,0.00022,2]
[425770647,1781885440000,-1106.0,0.00022,2]
[425770654,1781885440000,-158.09385894,0.00022407,2]
[425770652,1781885440000,-1798.80895522,0.00022224,2]
[425770649,1781885440000,-167.0,0.00022,2]
[425770657,1781885440000,-222.51,0.00022524,2]
[425770653,1781885440000,-200.0,0.00022299,2]
[425770692,1781885445000,-266.0,0.00022,2]
[425770689,1781885445000,-266.0,0.00021,2]
[425770688,1781885445000,-507.0,0.0002,2]
[425770690,1781885445000,-201.46124942,0.00021579,3]
[425770691,1781885445000,-305.53875058,0.00021579,3]
[425770693,1781885445000,-391.45002123,0.00023,2]
[425770694,1781885445000,-266.0,0.00023,2]
[425770697,1781885445000,-507.0,0.00023158,5]
[425770696,1781885445000,-5000.0,0.00023107,2]
[425770698,1781885445000,-1934.38338736,0.0002332,2]
[425770700,1781885445000,-151.0,0.0002332,2]
[425770699,1781885445000,-151.0,0.0002332,2]
[425770701,1781885445000,-151.0,0.0002332,2]
[425770702,1781885445000,-151.0,0.0002332,2]
[425770695,1781885445000,-166.66,0.00023047,30]
[425770716,1781885446000,-151.0,0.0002332,2]
[425770710,1781885446000,-151.0,0.0002332,2]
[425770709,1781885446000,-151.0,0.0002332,2]
[425770708,1781885446000,-151.0,0.0002332,2]
[425770706,1781885446000,-151.0,0.0002332,2]
[425770703,1781885446000,-151.0,0.0002332,2]
[425770704,1781885446000,-151.0,0.0002332,2]
[425770713,1781885446000,-151.0,0.0002332,2]
[425770705,1781885446000,-151.0,0.0002332,2]
[425770707,1781885446000,-151.0,0.0002332,2]
[425770717,1781885446000,-151.0,0.0002332,2]
[425770722,1781885446000,-2005.9555727,0.00023868,2]
[425770711,1781885446000,-151.0,0.0002332,2]
[425770712,1781885446000,-151.0,0.0002332,2]
[425770714,1781885446000,-151.0,0.0002332,2]
[425770718,1781885446000,-151.0,0.0002332,2]
[425770719,1781885446000,-166.66,0.00023522,30]
[425770720,1781885446000,-150.0,0.00023667,2]
[425770721,1781885446000,-1024.59196542,0.000237,2]
[425770723,1781885446000,-1024.59196542,0.000239,2]
[425770724,1781885446000,-4584.73654653,0.000239,2]
[425770715,1781885446000,-151.0,0.0002332,2]
[425770727,1781885818000,-168.65,0.00016712,2]
[425770729,1781885872000,-164.2,0.00016438,2]
[425770731,1781886245000,500.0,0.00016,2]
[425770732,1781886285000,-500.0,0.00016011,3]
[425770733,1781886340000,-150.5,0.00016438,2]
[425770734,1781886393000,-500.0,0.00016437,2]
[425770735,1781886447000,-500.0,0.00016436,2]
[425770736,1781886501000,-496.34926,0.00016436,2]
[425770737,1781886507000,-500.0,0.00016438,2]
[425770738,1781886507000,-161.0,0.00016438,2]
[425770739,1781886554000,-188.1,0.00016438,2]
[425770742,1781886631000,-492.3886714,0.00016438,2]
[425770744,1781886631000,-1500.0,0.00018883,2]
[425770748,1781886631000,-6948.31605729,0.000199,2]
[425770746,1781886631000,-50000.0,0.00019,2]
[425770743,1781886631000,-188.1,0.0001841,2]
[425770747,1781886631000,-1555.5,0.00019431,2]
[425770751,1781886631000,-1613.0535,0.00019979,2]
[425770755,1781886631000,-780.0,0.0002,2]
[425770745,1781886631000,-1000.0,0.00018999,2]
[425770756,1781886631000,-1405.0,0.0002,2]
[425770752,1781886631000,-291.0,0.0002,2]
[425770757,1781886631000,-251.0,0.0002,2]
[425770753,1781886631000,-235.0,0.0002,2]
[425770750,1781886631000,-167.76,0.00019958,2]
[425770759,1781886631000,-7013.69231452,0.0002,2]
[425770749,1781886631000,-1261.01937899,0.000199,2]
[425770758,1781886631000,-228.0,0.0002,2]
[425770754,1781886631000,-183.0,0.0002,2]
[425770760,1781886632000,-2496.34926,0.0002,2]
[425770786,1781886641000,-500.0,0.00020739,3]
[425770789,1781886641000,-291.0,0.00021,2]
[425770787,1781886641000,-300.0,0.00020739,3]
[425770791,1781886641000,-183.0,0.00021,2]
[425770783,1781886641000,-1672.7364795,0.00020527,2]
[425770790,1781886641000,-235.0,0.00021,2]
[425770788,1781886641000,-166.66,0.00020934,2]
[425770803,1781886641000,-300.0,0.00021,2]
[425770795,1781886641000,-228.0,0.00021,2]
[425770794,1781886641000,-251.0,0.00021,2]
[425770799,1781886641000,-466.0,0.00021,2]
[425770797,1781886641000,-50000.0,0.00021,2]
[425770813,1781886641000,-500.0,0.00021069,2]
[425770801,1781886641000,-269.0,0.00021,2]
[425770785,1781886641000,-200.85,0.00020712,2]
[425770793,1781886641000,-1405.0,0.00021,2]
[425770784,1781886641000,-200.0,0.00020684,2]
[425770771,1781886641000,-31246.07649263,0.0002,2]
[425770781,1781886641000,-188.1,0.00020381,2]
[425770805,1781886641000,-50000.0,0.00021,2]
[425770768,1781886641000,-997.46274978,0.0002,2]
[425770767,1781886641000,-364.0800082,0.0002,2]
[425770769,1781886641000,-1285.64047118,0.0002,2]
[425770770,1781886641000,-6596.69870369,0.0002,2]
[425770772,1781886641000,-466.0,0.0002,2]
[425770773,1781886641000,-269.0,0.0002,2]
[425770776,1781886641000,-506.0,0.0002,2]
[425770774,1781886641000,-50000.0,0.0002,2]
[425770779,1781886641000,-477.0,0.0002,2]
[425770777,1781886641000,-859.0,0.0002,2]
[425770775,1781886641000,-300.0,0.0002,2]
[425770778,1781886641000,-161.0,0.0002,2]
[425770780,1781886641000,-1999.1427,0.00020281,2]
[425770792,1781886641000,-780.0,0.00021,2]
[425770782,1781886641000,-166.66,0.00020502,2]
[425770807,1781886641000,-859.0,0.00021,2]
[425770838,1781886641000,-500.0,0.0002126,7]
[425770809,1781886641000,-477.0,0.00021,2]
[425770869,1781886641000,-282.0,0.00021768,2]
[425770861,1781886641000,-9336.3784,0.00021441,2]
[425770859,1781886641000,-457.5316,0.00021441,2]
[425770872,1781886641000,-277.0,0.00021768,2]
[425770874,1781886641000,-166.66,0.00021797,2]
[425770876,1781886641000,-900.0,0.0002185,2]
[425770878,1781886641000,-5000.0,0.00021918,2]
[425770863,1781886641000,-122132.17,0.00021544,2]
[425770880,1781886641000,-200.0,0.00021918,2]
[425770881,1781886641000,-200.0,0.00021918,2]
[425770886,1781886641000,-235.0,0.00022,2]
[425770885,1781886641000,-291.0,0.00022,2]
[425770889,1781886641000,-1405.0,0.00022,2]
[425770888,1781886641000,-780.0,0.00022,2]
[425770811,1781886641000,-8209.33543621,0.00021026,2]
[425770867,1781886641000,-339.45401011,0.00021681,2]
[425770865,1781886641000,-1798.80895522,0.00021623,2]
[425770883,1781886641000,-4596.41756746,0.00021982,2]
[425770841,1781886641000,-500.0,0.00021333,2]
[425770818,1781886641000,-282.0,0.00021083,2]
[425770854,1781886641000,-391.14696095,0.00021357,2]
[425770815,1781886641000,-1734.62772924,0.00021075,2]
[425770820,1781886641000,-168.0,0.00021083,2]
[425770831,1781886641000,-165.53,0.00021162,2]
[425770833,1781886641000,-506.0,0.000212,3]
[425770830,1781886641000,-500.0,0.00021083,2]
[425770834,1781886641000,-164.66,0.00021243,2]
[425770828,1781886641000,-653.0,0.00021083,2]
[425770843,1781886641000,-200.0,0.00021333,2]
[425770847,1781886641000,-500.0,0.00021333,2]
[425770836,1781886641000,-500.0,0.0002126,7]
[425770887,1781886641000,-183.0,0.00022,2]
[425770850,1781886641000,-500.0,0.00021333,2]
[425770845,1781886641000,-500.0,0.00021333,2]
[425770856,1781886641000,-166.66,0.00021365,2]
[425770852,1781886641000,-500.0,0.00021333,2]
[425770925,1781886642000,-173.3,0.0002254,2]
[425770928,1781886642000,-24794.23,0.00022562,2]
[425770927,1781886642000,-150.0,0.0002254,2]
[425770920,1781886642000,-6355.0458641,0.0002252,2]
[425770921,1781886642000,-173.3,0.0002254,2]
[425770918,1781886642000,-35249.076474,0.0002252,2]
[425770931,1781886642000,-166.66,0.0002266,30]
[425770923,1781886642000,-173.3,0.0002254,2]
[425770932,1781886642000,-564.0,0.00022712,2]
[425770919,1781886642000,-60905.4795555,0.0002252,2]
[425770930,1781886642000,-200.0,0.00022605,2]
[425770937,1781886642000,-200.0,0.00022719,2]
[425770940,1781886642000,-151.0,0.00022719,2]
[425770935,1781886642000,-151.0,0.00022719,2]
[425770942,1781886642000,-151.0,0.00022719,2]
[425770933,1781886642000,-151.0,0.00022719,2]
[425770936,1781886642000,-1934.38338736,0.00022719,2]
[425770934,1781886642000,-151.0,0.00022719,2]
[425770939,1781886642000,-151.0,0.00022719,2]
[425770944,1781886642000,-151.0,0.00022719,2]
[425770943,1781886642000,-151.0,0.00022719,2]
[425770955,1781886642000,-151.0,0.00022719,2]
[425770954,1781886642000,-500.0,0.00022719,2]
[425770929,1781886642000,-6543.0703619,0.00022589,2]
[425770941,1781886642000,-151.0,0.00022719,2]
[425770916,1781886642000,-189.7249468,0.0002252,2]
[425770898,1781886642000,-859.0,0.00022,2]
[425770913,1781886642000,-356.21,0.00022466,2]
[425770893,1781886642000,-50000.0,0.00022,2]
[425770894,1781886642000,-466.0,0.00022,2]
[425770890,1781886642000,-251.0,0.00022,2]
[425770891,1781886642000,-228.0,0.00022,2]
[425770892,1781886642000,-15228.11,0.00022,2]
[425770906,1781886642000,-166.66,0.00022229,30]
[425770895,1781886642000,-269.0,0.00022,2]
[425770897,1781886642000,-50000.0,0.00022,2]
[425770896,1781886642000,-300.0,0.00022,2]
[425770946,1781886642000,-151.0,0.00022719,2]
[425770900,1781886642000,-150.0,0.00022,2]
[425770899,1781886642000,-875.0,0.00022,2]
[425770901,1781886642000,-477.0,0.00022,2]
[425770903,1781886642000,-8209.33543621,0.00022151,2]
[425770902,1781886642000,-465.43,0.00022111,2]
[425770905,1781886642000,-360.27400888,0.00022228,2]
[425770904,1781886642000,-1865.36488656,0.00022171,2]
[425770908,1781886642000,-506.0,0.000224,4]
[425770909,1781886642000,-282.0,0.00022452,2]
[425770907,1781886642000,-188.1,0.00022353,2]
[425770911,1781886642000,-371.04,0.00022466,2]
[425770910,1781886642000,-168.201689,0.00022452,2]
[425770915,1781886642000,-173.8382464,0.00022487,2]
[425770917,1781886642000,-44857.2574431,0.0002252,2]
[425770912,1781886642000,-2163.71,0.00022466,2]
[425770914,1781886642000,-1503.66,0.00022466,2]
[425770950,1781886642000,-151.0,0.00022719,2]
[425770938,1781886642000,-151.0,0.00022719,2]
[425770952,1781886642000,-151.0,0.00022719,2]
[425770994,1781886642000,-151.0,0.00022719,2]
[425770996,1781886642000,-151.0,0.00022719,2]
[425770997,1781886642000,-273.0,0.00022865,2]
[425771001,1781886642000,-185.80629025,0.000229,11]
[425771000,1781886642000,-5528.0,0.000229,3]
[425770998,1781886642000,-4596.41756738,0.00022876,2]
[425770999,1781886642000,-218.67099295,0.000229,2]
[425771002,1781886642000,-164.66,0.00022996,2]
[425771003,1781886642000,-195.65,0.00023,7]
[425771005,1781886642000,-235.0,0.00023,2]
[425771006,1781886642000,-183.0,0.00023,2]
[425771004,1781886642000,-291.0,0.00023,2]
[425771012,1781886642000,-50000.0,0.00023,2]
[425771014,1781886642000,-269.0,0.00023,2]
[425771011,1781886642000,-38703.18,0.00023,2]
[425771007,1781886642000,-780.0,0.00023,2]
[425771010,1781886642000,-228.0,0.00023,2]
[425771008,1781886642000,-1405.0,0.00023,2]
[425771013,1781886642000,-466.0,0.00023,2]
[425771009,1781886642000,-251.0,0.00023,2]
[425771015,1781886642000,-300.0,0.00023,2]
[425771018,1781886642000,-365620.42293987,0.00023,2]
[425771016,1781886642000,-50000.0,0.00023,2]
[425771019,1781886642000,-875.0,0.00023,2]
[425770951,1781886642000,-500.0,0.00022719,2]
[425770995,1781886642000,-500.0,0.00022719,2]
[425770992,1781886642000,-500.0,0.00022719,2]
[425771017,1781886642000,-859.0,0.00023,2]
[425770989,1781886642000,-151.0,0.00022719,2]
[425770991,1781886642000,-151.0,0.00022719,2]
[425770949,1781886642000,-500.0,0.00022719,2]
[425770953,1781886642000,-151.0,0.00022719,2]
[425770956,1781886642000,-151.0,0.00022719,2]
[425770958,1781886642000,-151.0,0.00022719,2]
[425770961,1781886642000,-151.0,0.00022719,2]
[425770957,1781886642000,-500.0,0.00022719,2]
[425770960,1781886642000,-500.0,0.00022719,2]
[425770966,1781886642000,-500.0,0.00022719,2]
[425770959,1781886642000,-151.0,0.00022719,2]
[425770964,1781886642000,-151.0,0.00022719,2]
[425770970,1781886642000,-500.0,0.00022719,2]
[425770948,1781886642000,-151.0,0.00022719,2]
[425770973,1781886642000,-151.0,0.00022719,2]
[425770982,1781886642000,-500.0,0.00022719,2]
[425770985,1781886642000,-151.0,0.00022719,2]
[425770983,1781886642000,-151.0,0.00022719,2]
[425770968,1781886642000,-151.0,0.00022719,2]
[425770978,1781886642000,-151.0,0.00022719,2]
[425770981,1781886642000,-151.0,0.00022719,2]
[425770980,1781886642000,-500.0,0.00022719,2]
[425770977,1781886642000,-151.0,0.00022719,2]
[425770975,1781886642000,-151.0,0.00022719,2]
[425770987,1781886642000,-500.0,0.00022719,2]
[425770976,1781886642000,-500.0,0.00022719,2]
[425770979,1781886642000,-151.0,0.00022719,2]
[425771059,1781886643000,-200.0,0.000239,2]
[425771055,1781886643000,-163.57243009,0.00023876,2]
[425771051,1781886643000,-151.0,0.00023815,2]
[425771056,1781886643000,-500.0,0.00023876,2]
[425771047,1781886643000,-1639.34714467,0.000238,2]
[425771053,1781886643000,-200.0,0.00023815,2]
[425771052,1781886643000,-2080.17592889,0.00023815,2]
[425771054,1781886643000,-6083.4696,0.00023864,2]
[425771049,1781886643000,-220.52136932,0.000238,2]
[425771050,1781886643000,-166.35420591,0.000238,2]
[425771058,1781886643000,-409.0,0.000239,2]
[425771071,1781886643000,-466.0,0.00024,2]
[425771061,1781886643000,-273.0,0.00023989,2]
[425771060,1781886643000,-178.19851531,0.000239,2]
[425771065,1781886643000,-235.0,0.00024,2]
[425771064,1781886643000,-291.0,0.00024,2]
[425771066,1781886643000,-183.0,0.00024,2]
[425771062,1781886643000,-1639.34714467,0.00024,2]
[425771068,1781886643000,-1405.0,0.00024,2]
[425771069,1781886643000,-251.0,0.00024,2]
[425771067,1781886643000,-780.0,0.00024,2]
[425771070,1781886643000,-228.0,0.00024,2]
[425771048,1781886643000,-1089.81631436,0.000238,2]
[425771057,1781886643000,-403.0,0.000239,2]
[425771045,1781886643000,-640.51,0.00023738,7]
[425771035,1781886643000,-216.24448118,0.00023565,2]
[425771044,1781886643000,-150.0,0.00023667,2]
[425771072,1781886643000,-50000.0,0.00024,2]
[425771024,1781886643000,-273.0,0.00023239,2]
[425771022,1781886643000,-528.93,0.00023047,7]
[425771020,1781886643000,-477.0,0.00023,2]
[425771021,1781886643000,-206.0,0.00023009,2]
[425771025,1781886643000,-151.0,0.00023267,2]
[425771023,1781886643000,-660.32,0.00023047,7]
[425771026,1781886643000,-2005.9555727,0.00023267,2]
[425771027,1781886643000,-200.0,0.00023267,2]
[425771028,1781886643000,-8209.33543621,0.00023277,2]
[425771037,1781886643000,-1639.34714467,0.000236,2]
[425771046,1781886643000,-4596.41756738,0.0002377,2]
[425771030,1781886643000,-200.85,0.00023301,2]
[425771036,1781886643000,-160.0,0.00023565,2]
[425771032,1781886643000,-408.0,0.00023416,2]
[425771034,1781886643000,-5528.0,0.000235,5]
[425771031,1781886643000,-200.0,0.00023363,2]
[425771033,1781886643000,-465.43,0.00023481,2]
[425771038,1781886643000,-282.0,0.000236,2]
[425771039,1781886643000,-1089.81631436,0.000236,2]
[425771043,1781886643000,-273.0,0.00023614,2]
[425771042,1781886643000,-506.0,0.000236,5]
[425771040,1781886643000,-220.52136932,0.000236,2]
[425771041,1781886643000,-166.35420591,0.000236,2]
[425771029,1781886643000,-750.59,0.00023288,2]
[425771074,1781886643000,-166.35420591,0.00024,2]
[425771063,1781886643000,-1089.81631436,0.00024,2]
[425771075,1781886643000,-269.0,0.00024,2]
[425771103,1781886643000,-189.07,0.00024776,7]
[425771107,1781886643000,-1196.32285928,0.0002489,2]
[425771104,1781886643000,-506.0,0.000248,6]
[425771105,1781886643000,-150.0,0.0002485,2]
[425771106,1781886643000,-200.0,0.0002488,2]
[425771111,1781886643000,-2236.95670847,0.00024911,2]
[425771118,1781886643000,-795.0,0.00025,2]
[425771117,1781886643000,-193.0,0.00025,2]
[425771119,1781886643000,-1407.0,0.00025,2]
[425771110,1781886643000,-151.0,0.00024911,2]
[425771112,1781886643000,-200.0,0.00024911,2]
[425771108,1781886643000,-2500.0,0.000249,9]
[425771113,1781886643000,-160.9,0.00024937,2]
[425771115,1781886643000,-310.0,0.00025,2]
[425771116,1781886643000,-245.0,0.00025,2]
[425771120,1781886643000,-261.0,0.00025,2]
[425771124,1781886643000,-50000.0,0.00025,2]
[425771122,1781886643000,-468.0,0.00025,2]
[425771125,1781886643000,-50000.0,0.00025,2]
[425771121,1781886643000,-233.0,0.00025,2]
[425771123,1781886643000,-50000.0,0.00025,2]
[425771126,1781886643000,-284.0,0.00025,2]
[425771128,1781886643000,-872.0,0.00025,2]
[425771129,1781886643000,-489.0,0.00025,2]
[425771114,1781886643000,-183.75127708,0.00025,2]
[425771102,1781886643000,-164.66,0.00024749,2]
[425771080,1781886643000,-285.0,0.00024065,2]
[425771099,1781886643000,-1000.0,0.00024658,2]
[425771109,1781886643000,-218.67099295,0.000249,2]
[425771079,1781886643000,-477.0,0.00024,2]
[425771077,1781886643000,-300.0,0.00024,2]
[425771078,1781886643000,-859.0,0.00024,2]
[425771084,1781886643000,-1639.34714467,0.000243,2]
[425771127,1781886643000,-309.0,0.00025,2]
[425771081,1781886643000,-311.69,0.0002411,2]
[425771086,1781886643000,-1089.81631436,0.000243,2]
[425771083,1781886643000,-200.0,0.00024139,2]
[425771085,1781886643000,-282.0,0.000243,2]
[425771088,1781886643000,-151.0,0.00024363,2]
[425771087,1781886643000,-188.1,0.00024324,2]
[425771082,1781886643000,-200.0,0.00024122,2]
[425771095,1781886643000,-1639.34714467,0.000245,2]
[425771090,1781886643000,-200.0,0.00024363,2]
[425771091,1781886643000,-273.0,0.00024364,2]
[425771092,1781886643000,-8209.33543621,0.00024402,2]
[425771101,1781886643000,-4596.41756738,0.00024665,2]
[425771093,1781886643000,-620.69,0.0002443,7]
[425771096,1781886643000,-1089.81631436,0.000245,2]
[425771094,1781886643000,-500.0,0.00024441,2]
[425771097,1781886643000,-8298.68,0.00024523,7]
[425771098,1781886643000,-1072.14,0.00024655,7]
[425771100,1781886643000,-519.89,0.00024658,2]
[425771089,1781886643000,-2157.14243826,0.00024363,2]
[425771169,1781886644000,-1068.11,0.00026837,2]
[425771163,1781886644000,-489.211708,0.00026549,2]
[425771171,1781886644000,-1107.63007,0.00026837,2]
[425771165,1781886644000,-2494.55939288,0.00026555,2]
[425771156,1781886644000,-200.0,0.00026397,2]
[425771173,1781886644000,-158.27996193,0.00026837,2]
[425771168,1781886644000,-1030.0,0.00026837,2]
[425771166,1781886644000,-200.0,0.00026555,2]
[425771162,1781886644000,-248.0,0.00026549,5]
[425771170,1781886644000,-155.30723179,0.00026837,2]
[425771164,1781886644000,-277.81817141,0.00026555,2]